bitfinex/quotes_BTCUSD_20240627
["timestamp","ask_amount","ask_price","bid_price","bid_amount"]
[1719497406103,4.26782483,62407.0,62406.0,2.43114378]
[1719497406311,4.26782483,62407.0,62406.0,2.0688048]
[1719497407228,4.26782483,62407.0,62406.0,2.2688048]
[1719497407449,4.24476861,62407.0,62406.0,2.2688048]
[1719497407625,4.26711647,62407.0,62406.0,2.2688048]
[1719497407966,4.74992618,62407.0,62406.0,2.0688048]
[1719497408300,4.58759247,62407.0,62406.0,2.0688048]
[1719497409292,4.58778115,62407.0,62406.0,2.0688048]
[1719497409640,4.26730515,62407.0,62406.0,2.0688048]
[1719497409845,4.17165015,62407.0,62406.0,2.0688048]
[1719497410454,4.49212615,62407.0,62406.0,2.0688048]
[1719497410881,4.4931615,62407.0,62406.0,2.0688048]
[1719497413078,4.1726855,62407.0,62406.0,2.0688048]
[1719497413279,3.9608315,62407.0,62406.0,2.0688048]
[1719497413898,3.9455945,62407.0,62406.0,2.0688048]
[1719497414100,3.8712945,62407.0,62406.0,2.26852384]
[1719497414341,3.3839945,62407.0,62406.0,2.26852384]
[1719497414588,3.6140945,62407.0,62406.0,2.26852384]
[1719497415503,3.6140945,62407.0,62406.0,2.64786282]
[1719497415677,3.2936185,62407.0,62406.0,2.84786282]
[1719497416251,3.2936185,62407.0,62406.0,2.84878682]
[1719497416620,3.06521036,62407.0,62406.0,2.0697288]
[1719497416818,2.80174229,62407.0,62406.0,2.0697288]
[1719497417239,7.74131724,62407.0,62406.0,2.0697288]
[1719497417353,7.67067437,62407.0,62406.0,2.0697288]
[1719497417565,7.90723696,62407.0,62406.0,2.0697288]
[1719497418008,8.22125037,62407.0,62406.0,2.0697288]
[1719497418213,7.90077437,62407.0,62406.0,2.0697288]
[1719497418471,7.92619908,62407.0,62406.0,2.0697288]
[1719497418669,8.24667508,62407.0,62406.0,2.0697288]
[1719497419122,7.69581812,62407.0,62406.0,2.05551437]
[1719497419293,5.35087819,62407.0,62406.0,2.05551437]
[1719497419713,5.58739474,62407.0,62406.0,2.05551437]
[1719497420514,5.63983042,62407.0,62406.0,2.05351437]
[1719497420867,5.65083042,62407.0,62406.0,2.05451437]
[1719497421246,5.04222193,62407.0,62406.0,2.21684808]
[1719497421444,2.78847993,62407.0,62406.0,2.41657239]
[1719497421664,2.80247993,62407.0,62406.0,2.21685335]
[1719497421875,2.80247993,62407.0,62406.0,2.61357239]
[1719497422263,2.44224193,62407.0,62406.0,2.61357239]
[1719497422383,1.87115793,62407.0,62406.0,2.9959061]
[1719497422586,1.79402717,62407.0,62406.0,2.9959061]
[1719497422798,1.79402717,62407.0,62406.0,2.83357239]
[1719497422799,1.87094716,62407.0,62406.0,2.83357239]
[1719497423469,1.62122716,62407.0,62406.0,2.83357239]
[1719497423662,1.54388616,62407.0,62406.0,2.83357239]
[1719497423811,1.54388616,62407.0,62406.0,2.9959061]
[1719497424012,1.67398322,62407.0,62406.0,2.9959061]
[1719497424483,1.68798322,62407.0,62406.0,2.9959061]
[1719497425193,1.68798322,62407.0,62406.0,2.83357239]
[1719497425391,1.81390622,62407.0,62406.0,3.39957239]
[1719497425751,1.48243022,62407.0,62406.0,3.40857239]
[1719497426156,1.48243022,62407.0,62406.0,3.39857239]
[1719497426342,1.49143022,62407.0,62406.0,3.39957239]
[1719497426541,1.49143022,62407.0,62406.0,3.40957239]
[1719497426767,1.49143022,62407.0,62406.0,3.40857239]
[1719497426768,1.30773175,62407.0,62406.0,3.40857239]
[1719497426978,0.5371537,62407.0,62406.0,3.5709061]
[1719497427342,0.3328337,62407.0,62406.0,3.5709061]
[1719497427470,0.1725957,62407.0,62406.0,3.5709061]
[1719497427848,0.0725957,62407.0,62406.0,3.5709061]
[1719497428030,0.1725957,62407.0,62406.0,3.5709061]
[1719497428477,0.29264764,62407.0,62406.0,3.5709061]
[1719497428651,0.29064764,62407.0,62406.0,3.5709061]
[1719497428881,0.1705957,62407.0,62406.0,3.5709061]
[1719497429100,0.1705957,62407.0,62406.0,3.5729061]
[1719497429481,0.29064764,62407.0,62406.0,3.5709061]
[1719497429697,0.29164764,62407.0,62406.0,3.5849061]
[1719497430034,0.29164154,62407.0,62406.0,3.5849061]
[1719497430233,0.29164154,62407.0,62406.0,3.41257239]
[1719497430234,0.45187954,62407.0,62406.0,3.41257239]
[1719497430433,0.75835554,62407.0,62406.0,3.41257239]
[1719497430688,0.75835554,62407.0,62406.0,3.42257239]
[1719497431009,0.76935554,62407.0,62406.0,3.42357239]
[1719497431543,0.75835554,62407.0,62406.0,3.42257239]
[1719497431898,0.75835554,62407.0,62406.0,3.43103201]
[1719497432045,0.75835554,62407.0,62406.0,3.59536572]
[1719497432240,0.75835554,62407.0,62406.0,3.43303201]
[1719497432439,1.07883154,62407.0,62406.0,3.43303201]
[1719497432847,1.39930754,62407.0,62406.0,3.42303201]
[1719497433263,1.3992448,62407.0,62406.0,3.42303201]
[1719497433839,1.27919581,62407.0,62406.0,3.40303201]
[1719497434042,1.92137761,62407.0,62406.0,2.85703201]
[1719497434161,1.77730081,62407.0,62406.0,2.83703201]
[1719497434376,1.77730081,62407.0,62406.0,2.85703201]
[1719497434993,1.77730081,62407.0,62406.0,2.84503201]
[1719497435353,1.77630081,62407.0,62406.0,2.63403201]
[1719497435565,1.75275475,62407.0,62406.0,2.83203201]
[1719497435775,2.10428921,62407.0,62406.0,2.62103201]
[1719497435949,2.10428921,62407.0,62406.0,2.83803201]
[1719497436486,1.93927385,62407.0,62406.0,2.64103201]
[1719497436680,1.93927385,62407.0,62406.0,3.38196572]
[1719497436681,1.33727193,62407.0,62406.0,3.38196572]
[1719497436916,0.12759783,62429.0,62406.0,3.38196572]
[1719497436917,0.20573179,62420.0,62419.0,0.62671904]
[1719497437107,0.12004546,62425.0,62423.0,0.62671904]
[1719497437355,0.12004546,62425.0,62423.0,1.36765802]
[1719497437356,0.04801354,62425.0,62423.0,1.36765802]
[1719497437581,0.07202035,62425.0,62423.0,1.37482094]
[1719497437776,0.21607763,62428.0,62423.0,1.37482094]
[1719497437777,0.09603217,62428.0,62423.0,1.37482094]
[1719497438001,0.04798158,62425.0,62423.0,1.37482094]
[1719497438589,0.04798158,62426.0,62423.0,1.37482094]
[1719497438818,0.07197237,62425.0,62423.0,1.38882094]
[1719497438966,0.05636342,62424.0,62423.0,1.38882094]
[1719497439171,0.00841,62424.0,62423.0,1.38882094]
[1719497440449,0.00841,62424.0,62423.0,1.58092094]
[1719497440651,0.00841,62424.0,62423.0,1.98092094]
[1719497440855,0.00841,62424.0,62423.0,1.58092094]
[1719497441056,0.00841,62424.0,62423.0,1.78092094]
[1719497441333,0.00841,62424.0,62423.0,2.14111794]
[1719497441473,0.00841,62424.0,62423.0,2.4224214]
[1719497441679,1.0124415,62430.0,62429.0,1.57691904]
[1719497441918,1.0124415,62430.0,62429.0,1.76225802]
[1719497442165,1.0124415,62430.0,62429.0,1.36728216]
[1719497442578,1.06037013,62430.0,62429.0,1.36728216]
[1719497442786,1.06037013,62430.0,62429.0,1.37728216]
[1719497442787,1.06031506,62430.0,62429.0,1.37728216]
[1719497443022,1.0124415,62430.0,62429.0,1.37015802]
[1719497443228,1.0124415,62430.0,62429.0,1.39136106]
[1719497443622,1.1124415,62430.0,62429.0,1.39136106]
[1719497444074,1.1124415,62430.0,62429.0,1.37736106]
[1719497444563,1.1124415,62430.0,62429.0,1.36736106]
[1719497444760,1.1124415,62430.0,62429.0,1.37736106]
[1719497445137,1.1124415,62430.0,62429.0,1.36736106]
[1719497445584,1.1124415,62430.0,62429.0,1.38276106]
[1719497445804,2.85085806,62430.0,62429.0,0.80166106]
[1719497445999,2.5792575,62430.0,62429.0,0.79968843]
[1719497446191,2.55832119,62430.0,62429.0,0.79968843]
[1719497446347,2.5104835,62430.0,62429.0,0.79968843]
[1719497446551,2.5104835,62430.0,62429.0,0.79445802]
[1719497446772,2.5104835,62430.0,62429.0,0.80968843]
[1719497446997,2.2803835,62430.0,62429.0,0.80968843]
[1719497447225,2.2803835,62430.0,62429.0,0.79968843]
[1719497447456,1.4794885,62430.0,62429.0,0.79968843]
[1719497447689,1.9600255,62430.0,62429.0,0.80168843]
[1719497447903,2.2803835,62430.0,62429.0,0.80168843]
[1719497448129,2.2803835,62430.0,62429.0,0.79445802]
[1719497448348,2.2803835,62430.0,62429.0,0.79969019]
[1719497448793,2.8308415,62430.0,62429.0,0.79969019]
[1719497449816,2.8308415,62430.0,62429.0,0.80099823]
[1719497450517,2.8348415,62430.0,62429.0,0.80099823]
[1719497450881,1.9640255,62430.0,62429.0,0.80099823]
[1719497451109,2.2843835,62430.0,62429.0,0.80099823]
[1719497451309,1.4834885,62430.0,62429.0,0.81099823]
[1719497451569,1.1124415,62430.0,62429.0,0.81099823]
[1719497451771,1.1124415,62430.0,62429.0,0.82099823]
[1719497451975,1.5929785,62430.0,62429.0,0.81099823]
[1719497452186,2.0890295,62430.0,62429.0,0.81099823]
[1719497452395,1.9133365,62430.0,62429.0,0.81099823]
[1719497452597,1.9133365,62430.0,62429.0,0.82099823]
[1719497453004,2.9207645,62430.0,62429.0,0.82099823]
[1719497453224,1.1124415,62430.0,62429.0,0.82099823]
[1719497453455,1.138408,62430.0,62429.0,0.82099823]
[1719497453657,1.298587,62430.0,62429.0,0.81099823]
[1719497454056,1.302587,62430.0,62429.0,0.81099823]
[1719497454264,1.142408,62430.0,62429.0,0.81099823]
[1719497454468,1.142408,62430.0,62429.0,1.76419823]
[1719497455116,1.142408,62430.0,62429.0,1.53447919]
[1719497455117,1.042408,62430.0,62429.0,1.53447919]
[1719497455321,1.042408,62430.0,62429.0,1.96419823]
[1719497456041,1.038408,62430.0,62429.0,1.97219823]
[1719497456242,1.038408,62430.0,62429.0,1.96419823]
[1719497456702,1.518945,62430.0,62429.0,0.80099823]
[1719497456895,2.366561,62430.0,62429.0,0.80099823]
[1719497457054,3.007277,62430.0,62429.0,0.80099823]
[1719497457253,2.686919,62430.0,62429.0,0.80099823]
[1719497457455,3.007277,62430.0,62429.0,0.78099823]
[1719497457705,3.12042864,62430.0,62429.0,0.80099823]
[1719497457946,2.80007064,62430.0,62429.0,0.80099823]
[1719497458149,2.28255464,62430.0,62429.0,0.78099823]
[1719497458385,4.09279964,62430.0,62429.0,0.78099823]
[1719497458770,4.09284398,62430.0,62429.0,0.78845802]
[1719497459411,4.09284398,62430.0,62429.0,0.80845802]
[1719497459634,4.09284398,62430.0,62429.0,0.78845802]
[1719497459880,4.09284398,62430.0,62429.0,0.58873898]
[1719497460086,3.12920898,62430.0,62429.0,0.81145802]
[1719497460232,3.11157998,62430.0,62429.0,0.79745802]
[1719497460451,3.11157998,62430.0,62429.0,0.80023458]
[1719497460657,3.11157998,62430.0,62429.0,0.80823458]
[1719497460874,3.11157998,62430.0,62429.0,0.39151554]
[1719497460875,3.67393798,62430.0,62429.0,0.39151554]
[1719497461072,3.98183798,62430.0,62429.0,0.57745802]
[1719497461277,3.11557998,62430.0,62429.0,0.79445802]
[1719497461497,3.11557998,62430.0,62429.0,0.80045802]
[1719497461840,3.092642,62430.0,62429.0,0.77445802]
[1719497462045,3.18630496,62430.0,62429.0,0.17973898]
[1719497462260,3.50666296,62430.0,62429.0,0.17973898]
[1719497462479,3.50266296,62430.0,62429.0,0.17973898]
[1719497462712,3.11058385,62430.0,62429.0,0.17973898]
[1719497462920,3.11058385,62430.0,62429.0,0.85776148]
[1719497462921,3.41241215,62430.0,62429.0,0.85776148]
[1719497463122,3.34068385,62430.0,62429.0,0.86353804]
[1719497463731,3.34068385,62430.0,62429.0,0.85776148]
[1719497463939,3.41241215,62430.0,62429.0,0.88353804]
[1719497464134,3.11058385,62430.0,62429.0,0.88153804]
[1719497464336,3.11058385,62430.0,62429.0,1.21735792]
[1719497464337,3.02032585,62430.0,62429.0,1.21735792]
[1719497464537,3.02132585,62430.0,62429.0,1.45765792]
[1719497464880,3.02132585,62430.0,62429.0,1.46058344]
[1719497464881,3.02832585,62430.0,62429.0,1.46058344]
[1719497465094,3.02843377,62430.0,62429.0,1.47058344]
[1719497465240,2.70807577,62430.0,62429.0,1.46865792]
[1719497465441,1.87109477,62430.0,62429.0,1.46958344]
[1719497465620,1.55073677,62430.0,62429.0,1.46958344]
[1719497465842,1.87109477,62430.0,62429.0,1.45958344]
[1719497466052,2.19145277,62430.0,62429.0,1.45958344]
[1719497466629,2.51181077,62430.0,62429.0,1.37827998]
[1719497466824,2.51181077,62430.0,62429.0,1.13797998]
[1719497467004,2.51181077,62430.0,62429.0,0.91926094]
[1719497467005,2.20345277,62430.0,62429.0,0.91926094]
[1719497467279,2.20345277,62430.0,62429.0,1.14897998]
[1719497467456,2.25129642,62430.0,62429.0,1.13897998]
[1719497468080,2.02119642,62430.0,62429.0,1.13897998]
[1719497468292,2.8496258,62430.0,62429.0,1.13897998]
[1719497468503,2.80856521,62430.0,62429.0,1.13897998]
[1719497468696,2.73426521,62430.0,62429.0,1.13897998]
[1719497469550,2.66241551,62430.0,62429.0,1.13897998]
[1719497470175,2.52318551,62430.0,62429.0,1.13897998]
[1719497470384,4.14873011,62430.0,62429.0,1.13897998]
[1719497470586,4.05293051,62430.0,62429.0,1.13897998]
[1719497470792,4.05293051,62430.0,62429.0,1.1312779]
[1719497471151,4.33395351,62430.0,62429.0,1.13706494]
[1719497471387,2.99623951,62430.0,62429.0,1.13706494]
[1719497471619,2.85955551,62430.0,62429.0,1.13706494]
[1719497471896,2.9493963,62430.0,62429.0,1.13706494]
[1719497472523,2.82955551,62430.0,62429.0,1.13706494]
[1719497472928,3.14991351,62430.0,62429.0,1.13706494]
[1719497473127,3.26977318,62430.0,62429.0,1.13706494]
[1719497473577,3.14991351,62430.0,62429.0,1.13706494]
[1719497473961,3.47027151,62430.0,62429.0,1.1312779]
[1719497474348,3.68253417,62430.0,62429.0,1.13706494]
[1719497474756,3.68256264,62430.0,62429.0,1.13706494]
[1719497474995,3.36220464,62430.0,62429.0,1.13706494]
[1719497475205,2.40709385,62430.0,62429.0,1.13166494]
[1719497475356,2.40709385,62430.0,62429.0,1.69836494]
[1719497475357,1.22820959,62430.0,62429.0,1.69836494]
[1719497475561,1.20423046,62430.0,62429.0,1.89836494]
[1719497475770,1.15627556,62430.0,62429.0,1.69836494]
[1719497475976,1.05627556,62430.0,62429.0,1.69836494]
[1719497476181,1.05627556,62430.0,62429.0,1.90030745]
[1719497476805,1.035008,62430.0,62429.0,2.09240745]
[1719497477494,1.135008,62430.0,62429.0,2.09240745]
[1719497478415,1.123008,62430.0,62429.0,2.09140745]
[1719497478684,1.123008,62430.0,62429.0,2.10527188]
[1719497480490,1.123008,62430.0,62429.0,1.67555284]
[1719497480691,1.123008,62430.0,62429.0,2.10527188]
[1719497483011,1.125008,62430.0,62429.0,2.10527188]
[1719497483412,1.125008,62430.0,62429.0,2.10572616]
[1719497484010,1.125008,62430.0,62429.0,1.95572616]
[1719497484507,1.125008,62430.0,62429.0,1.95598851]
[1719497484704,1.025008,62430.0,62429.0,1.95598851]
[1719497485126,1.025008,62430.0,62429.0,2.15598851]
[1719497485589,1.025008,62430.0,62429.0,2.6367215]
[1719497485825,0.9998815,62430.0,62429.0,2.71802496]
[1719497485969,0.9998815,62430.0,62429.0,2.71812496]
[1719497486176,0.9998815,62430.0,62429.0,3.03848796]
[1719497486177,1.02300168,62430.0,62429.0,3.03848796]
[1719497486378,1.02300168,62430.0,62429.0,3.23941196]
[1719497486579,1.02300168,62430.0,62429.0,3.22941196]
[1719497486810,1.02300168,62430.0,62429.0,3.22950145]
[1719497487030,1.02400168,62430.0,62429.0,3.24650145]
[1719497487157,0.99538376,62430.0,62429.0,3.24650145]
[1719497487386,0.99538376,62430.0,62429.0,2.45373104]
[1719497487777,0.99538376,62430.0,62429.0,2.4608268]
[1719497488135,0.99438376,62430.0,62429.0,2.46117603]
[1719497488321,0.99438376,62430.0,62429.0,2.94555807]
[1719497488322,0.96787065,62430.0,62429.0,2.94555807]
[1719497488557,0.96787065,62430.0,62429.0,3.26592107]
[1719497488905,0.96787065,62430.0,62429.0,3.25192107]
[1719497489109,0.96787065,62430.0,62429.0,3.25251391]
[1719497489518,0.96787065,62430.0,62429.0,2.45160691]
[1719497489722,0.96787065,62430.0,62429.0,2.60794538]
[1719497490344,0.96887065,62430.0,62429.0,2.61504876]
[1719497490765,0.96887065,62430.0,62429.0,2.45486776]
[1719497490930,0.96787065,62430.0,62429.0,2.46586776]
[1719497491334,0.96887065,62430.0,62429.0,2.45486776]
[1719497491582,0.96887065,62430.0,62429.0,2.45576793]
[1719497491749,0.96887065,62430.0,62429.0,2.93631193]
[1719497491972,0.96887065,62430.0,62429.0,2.95031193]
[1719497492143,0.96887065,62430.0,62429.0,2.95041193]
[1719497492497,0.96887065,62430.0,62429.0,3.25677493]
[1719497492699,0.96887065,62430.0,62429.0,3.25888733]
[1719497493074,0.96887065,62430.0,62429.0,3.27288733]
[1719497493674,0.96887065,62430.0,62429.0,2.47198033]
[1719497494101,0.96887065,62430.0,62429.0,2.47812309]
[1719497495173,0.96887065,62430.0,62429.0,2.18281963]
[1719497495374,0.96787065,62430.0,62429.0,1.97767371]
[1719497495575,0.96787065,62430.0,62429.0,2.19550245]
[1719497495924,0.96787065,62430.0,62429.0,2.18450245]
[1719497495925,0.96887065,62430.0,62429.0,2.18450245]
[1719497496401,0.96887065,62430.0,62429.0,2.19850245]
[1719497496569,0.96887065,62430.0,62429.0,2.1989769]
[1719497496793,0.96887065,62430.0,62429.0,2.1819769]
[1719497496997,0.96787065,62430.0,62429.0,2.1819769]
[1719497497204,0.96787065,62430.0,62429.0,2.1959769]
[1719497497528,0.96787065,62430.0,62429.0,2.19736948]
[1719497498506,0.0384,62431.0,62430.0,1.73471888]
[1719497498673,0.0084,62432.0,62430.0,1.73471888]
[1719497498674,0.44568743,62442.0,62441.0,0.61671904]
[1719497498890,0.54568743,62442.0,62441.0,0.80045177]
[1719497499093,0.260148,62442.0,62441.0,0.80045177]
[1719497499295,0.12512019,62442.0,62441.0,0.80045177]
[1719497499494,0.12512019,62442.0,62441.0,0.80065177]
[1719497500046,0.02512019,62442.0,62441.0,0.80065177]
[1719497500247,0.02512019,62442.0,62441.0,1.00065177]
[1719497500544,0.02512019,62442.0,62441.0,1.00665177]
[1719497500718,0.02512019,62442.0,62441.0,1.75695177]
[1719497501125,0.03112019,62442.0,62441.0,1.75695177]
[1719497501922,0.03112019,62442.0,62441.0,0.97575177]
[1719497502150,0.03112019,62442.0,62441.0,0.96975177]
[1719497502573,0.03112019,62442.0,62441.0,0.97975177]
[1719497502780,0.35141719,62442.0,62441.0,0.80065177]
[1719497502985,0.96677488,62442.0,62441.0,0.79065177]
[1719497503184,0.64647788,62442.0,62441.0,0.80065177]
[1719497503440,0.64647788,62442.0,62441.0,0.98375177]
[1719497503441,0.13112019,62442.0,62441.0,0.98375177]
[1719497503790,0.13112019,62442.0,62441.0,0.96975177]
[1719497503995,0.03112019,62442.0,62441.0,0.96975177]
[1719497504196,0.03112019,62442.0,62441.0,1.16975177]
[1719497504390,0.03112019,62442.0,62441.0,1.17975177]
[1719497504569,0.03112019,62442.0,62441.0,1.20275177]
[1719497504774,0.02512019,62442.0,62441.0,1.95475177]
[1719497505375,0.02712019,62442.0,62441.0,1.95475177]
[1719497506573,0.02712019,62442.0,62441.0,1.94475177]
[1719497506574,0.02512019,62442.0,62441.0,1.94475177]
[1719497507104,0.02512019,62442.0,62441.0,0.98375177]
[1719497507389,0.18526819,62442.0,62441.0,0.81465177]
[1719497507625,0.21984168,62442.0,62441.0,0.81465177]
[1719497507798,0.31984168,62442.0,62441.0,0.81465177]
[1719497507930,0.31984168,62442.0,62441.0,0.80325802]
[1719497508136,0.31984168,62442.0,62441.0,0.80463655]
[1719497508137,1.51083268,62442.0,62441.0,0.80463655]
[1719497508336,6.78851568,62442.0,62441.0,1.14045643]
[1719497508539,6.78851568,62442.0,62441.0,1.1290779]
[1719497508745,6.78851568,62442.0,62441.0,1.1090779]
[1719497508746,7.43522099,62442.0,62441.0,1.1090779]
[1719497508952,5.56913399,62442.0,62441.0,1.1290779]
[1719497509292,0.78894741,62442.0,62441.0,1.1390779]
[1719497509492,0.71709368,62442.0,62441.0,1.1390779]
[1719497509695,0.87724168,62442.0,62441.0,1.15046698]
[1719497509894,0.87724168,62442.0,62441.0,1.1390779]
[1719497510137,1.19753868,62442.0,62441.0,1.15046698]
[1719497510291,0.87724168,62442.0,62441.0,1.15346698]
[1719497510451,0.94910052,62442.0,62441.0,1.15346698]
[1719497510657,0.87724168,62442.0,62441.0,1.15346698]
[1719497510966,0.87724168,62442.0,62441.0,1.13946698]
[1719497511206,0.76500958,62442.0,62441.0,1.13646698]
[1719497511451,0.76500958,62442.0,62441.0,1.13846698]
[1719497511452,0.20761059,62442.0,62441.0,1.13846698]
[1719497511636,0.16769368,62442.0,62441.0,1.13846698]
[1719497511758,0.16769368,62442.0,62441.0,1.13646698]
[1719497511969,0.17768111,62442.0,62441.0,1.13646698]
[1719497512389,0.23225616,62442.0,62441.0,1.13946698]
[1719497512601,0.23315199,62442.0,62441.0,1.13946698]
[1719497512832,0.23981031,62442.0,62441.0,1.13946698]
[1719497513032,0.19188487,62442.0,62441.0,1.33946698]
[1719497513233,0.19284957,62442.0,62441.0,1.33946698]
[1719497513848,0.19284957,62442.0,62441.0,1.13946698]
[1719497514471,0.19284957,62442.0,62441.0,1.12946698]
[1719497514675,0.24077501,62442.0,62441.0,1.12946698]
[1719497515073,0.98522737,62442.0,62441.0,1.12646698]
[1719497515302,1.98873437,62442.0,62441.0,1.12646698]
[1719497515477,2.26453437,62442.0,62441.0,1.12266608]
[1719497515688,2.2214508,62442.0,62441.0,1.1150779]
[1719497515832,2.35063767,62442.0,62441.0,1.12646017]
[1719497516231,2.33863767,62442.0,62441.0,1.12646017]
[1719497516659,2.10853767,62442.0,62441.0,0.70974113]
[1719497516849,2.43683467,62442.0,62441.0,0.90674113]
[1719497517050,2.75713167,62442.0,62441.0,0.54740215]
[1719497517835,1.441588,62431.0,62430.0,0.73889984]
[1719497518054,7.31289772,62431.0,62430.0,0.13899984]
[1719497518262,1.121666,62407.0,62402.0,0.000924]
[1719497518462,1.26392776,62407.0,62403.0,0.08130346]
[1719497518693,0.96009972,62407.0,62403.0,0.08130346]
[1719497518909,1.22120182,62407.0,62403.0,0.08130346]
[1719497519116,1.28785776,62407.0,62403.0,0.08130346]
[1719497519332,1.60823376,62407.0,62403.0,0.08130346]
[1719497519535,1.28775776,62407.0,62406.0,0.16326298]
[1719497519746,0.72585081,62407.0,62406.0,0.16326298]
[1719497519956,0.97440876,62407.0,62406.0,0.16326298]
[1719497520134,1.65180076,62407.0,62406.0,0.16326298]
[1719497520509,2.09214027,62407.0,62406.0,0.16326298]
[1719497520720,1.97217676,62407.0,62406.0,0.16326298]
[1719497521059,2.29265276,62407.0,62406.0,0.000924]
[1719497521274,2.29265276,62407.0,62402.0,0.000924]
[1719497521275,1.442236,62403.0,62402.0,0.000924]
[1719497521446,6.85223476,62403.0,62402.0,0.000924]
[1719497521690,6.20357282,62403.0,62402.0,0.16326298]
[1719497521890,3.94915571,62403.0,62402.0,0.16326298]
[1719497522175,3.59359071,62403.0,62402.0,0.16326298]
[1719497522397,3.87446456,62403.0,62402.0,0.16326298]
[1719497522595,3.87446179,62403.0,62402.0,0.16326298]
[1719497522800,3.80269071,62403.0,62402.0,0.16326298]
[1719497523002,3.87646113,62403.0,62402.0,0.16426298]
[1719497523205,3.80469071,62403.0,62402.0,0.16426298]
[1719497523427,2.11814371,62403.0,62402.0,0.16426298]
[1719497523620,2.11814371,62403.0,62402.0,0.001924]
[1719497523840,5.31278032,62403.0,62402.0,0.001924]
[1719497523965,5.17346971,62403.0,62402.0,0.001924]
[1719497524667,5.50396671,62403.0,62402.0,0.001924]
[1719497524869,5.15825769,62403.0,62402.0,0.001924]
[1719497525071,4.50810646,62403.0,62402.0,0.001924]
[1719497525274,3.51960317,62403.0,62402.0,0.16426298]
[1719497525502,0.59908917,62403.0,62402.0,0.16426298]
[1719497525719,0.91958617,62403.0,62402.0,0.16426298]
[1719497525944,0.917142,62403.0,62402.0,0.16426298]
[1719497526157,0.116,62403.0,62402.0,0.17426298]
[1719497526353,0.274248,62403.0,62402.0,0.17326298]
[1719497526558,0.494745,62403.0,62402.0,0.16326298]
[1719497526776,0.915242,62403.0,62402.0,0.16526298]
[1719497526979,1.444839,62403.0,62402.0,0.16526298]
[1719497527131,2.06733718,62403.0,62402.0,0.16526298]
[1719497527342,2.06723718,62403.0,62402.0,0.16526298]
[1719497528050,2.06725302,62403.0,62402.0,0.16526298]
[1719497528248,1.30966402,62403.0,62402.0,0.16526298]
[1719497528448,1.08079502,62403.0,62402.0,0.16526298]
[1719497528608,0.594645,62403.0,62402.0,0.16526298]
[1719497528801,0.1139,62403.0,62402.0,0.16526298]
[1719497529273,0.594645,62403.0,62402.0,0.16526298]
[1719497529685,0.594645,62403.0,62402.0,0.18536298]
[1719497529686,0.1139,62403.0,62402.0,0.18536298]
[1719497529904,0.0139,62403.0,62402.0,0.18536298]
[1719497530071,0.0139,62403.0,62402.0,0.18336298]
[1719497530479,0.0159,62403.0,62402.0,0.18436298]
[1719497530855,0.0159,62403.0,62402.0,0.16233898]
[1719497531187,0.0139,62403.0,62402.0,0.16233898]
[1719497531384,0.0139,62403.0,62402.0,1.15596494]
[1719497531597,0.0139,62403.0,62402.0,1.17896494]
[1719497531805,0.160209,62419.0,62411.0,0.5987]
[1719497532005,0.320386,62425.0,62418.0,0.24364244]
[1719497532642,0.160176,62431.0,62424.0,0.16233898]
[1719497532845,0.160168,62435.0,62430.0,0.16233898]
[1719497533048,0.320311,62440.0,62432.0,0.16233898]
[1719497533260,0.320311,62440.0,62427.0,0.08130346]
[1719497533261,0.271413,62439.0,62434.0,0.08130346]
[1719497533464,0.160166,62435.0,62434.0,0.08130346]
[1719497533611,0.222381,62435.0,62428.0,0.20320317]
[1719497533831,0.320311,62440.0,62434.0,0.24364244]
[1719497534029,0.160166,62435.0,62434.0,0.24364244]
[1719497535220,0.480499,62435.0,62434.0,0.16233898]
[1719497535416,1.46860113,62435.0,62434.0,0.16233898]
[1719497535637,1.04835013,62435.0,62434.0,0.16233898]
[1719497535837,0.72801713,62435.0,62434.0,0.16233898]
[1719497536038,1.04835013,62435.0,62434.0,0.16233898]
[1719497536267,1.38868313,62435.0,62434.0,0.16233898]
[1719497537018,1.99611613,62435.0,62434.0,0.16233898]
[1719497537224,0.160207,62419.0,62418.0,0.08130346]
[1719497537451,0.320377,62427.0,62418.0,0.24364244]
[1719497537623,0.1,62419.0,62418.0,0.08130346]
[1719497538583,0.1,62423.0,62418.0,0.08130346]
[1719497539198,0.1,62423.0,62418.0,0.28130346]
[1719497539514,0.1,62423.0,62419.0,0.2]
[1719497539735,0.1,62424.0,62418.0,0.08130346]
[1719497539914,0.260194,62424.0,62418.0,0.08130346]
[1719497540111,0.1,62424.0,62418.0,0.08130346]
[1719497540310,0.160206,62420.0,62418.0,0.08130346]
[1719497540517,0.260207,62419.0,62418.0,0.08130346]
[1719497540712,0.1,62419.0,62418.0,0.08130346]
[1719497541121,0.1,62419.0,62418.0,0.28130346]
[1719497541328,0.1,62419.0,62418.0,0.61274244]
[1719497541545,0.32035,62432.0,62418.0,0.41274244]
[1719497541546,0.160187,62427.0,62418.0,0.41274244]
[1719497541939,0.160189,62427.0,62426.0,0.24364244]
[1719497542185,0.260189,62427.0,62426.0,0.24364244]
[1719497542620,0.900937,62427.0,62426.0,0.24364244]
[1719497542788,0.91620526,62427.0,62426.0,0.24364244]
[1719497543240,1.23657926,62427.0,62426.0,0.24364244]
[1719497543777,1.23658676,62427.0,62426.0,0.24364244]
[1719497544185,1.25658676,62427.0,62426.0,0.24364244]
[1719497544381,2.19467076,62427.0,62426.0,0.24364244]
[1719497544630,1.96455676,62427.0,62426.0,0.24364244]
[1719497545234,1.82530342,62427.0,62426.0,0.24364244]
[1719497545391,1.84530342,62427.0,62426.0,0.24364244]
[1719497545590,2.16567742,62427.0,62426.0,0.24364244]
[1719497545822,0.821037,62419.0,62418.0,0.08140346]
[1719497546029,0.821037,62419.0,62418.0,0.24374244]
[1719497546030,1.26338842,62419.0,62418.0,0.24374244]
[1719497546235,1.64540342,62419.0,62418.0,0.08140346]
[1719497546433,1.69804399,62419.0,62418.0,0.08140346]
[1719497546684,6.74804399,62419.0,62418.0,0.08140346]
[1719497546937,2.29950179,62419.0,62418.0,0.0001]
[1719497547079,7.34954204,62419.0,62418.0,0.0001]
[1719497547284,2.29954204,62419.0,62418.0,0.0001]
[1719497547486,7.34954204,62419.0,62418.0,0.0001]
[1719497547809,2.29954204,62419.0,62418.0,0.0001]
[1719497548028,2.18989924,62419.0,62418.0,0.0001]
[1719497548149,7.22989924,62419.0,62418.0,0.0001]
[1719497548369,7.22989924,62419.0,62416.0,0.064198]
[1719497548370,1.782337,62417.0,62416.0,0.064198]
[1719497548572,7.00029358,62417.0,62416.0,0.064198]
[1719497548788,7.01029358,62417.0,62416.0,0.064198]
[1719497548980,7.00029358,62417.0,62416.0,0.064198]
[1719497549275,6.67986858,62417.0,62416.0,0.064198]
[1719497549478,3.10333853,62417.0,62416.0,0.22653698]
[1719497549699,1.84470753,62417.0,62416.0,0.22653698]
[1719497549834,2.48555753,62417.0,62416.0,0.22653698]
[1719497550250,2.470251,62417.0,62416.0,0.22653698]
[1719497550928,2.470251,62417.0,62416.0,0.064198]
[1719497551128,5.618593,62417.0,62416.0,0.064198]